[Event "Titled Tuesday Blitz October 25 Late 2022"]
[White "Barash, Anton"]
[Black "Boyer, Mahel"]
[WhiteFideId "30935229"]
[BlackFideId "45102422"]
[WhiteElo "2272"]
[BlackElo "2454"]
[Result "1/2-1/2"]
[Round "06"]
[TimeControl "180+1"]
[Date "2022.10.26"]
[WhiteClock "0:00:10"]
[BlackClock "0:00:39"]

1. e4 {[%clk 0:02:39]}  e5 {[%clk 0:02:37]} 2. Nc3 {[%clk 0:02:38]}  Nc6 {[%clk 0:02:37]} 3. f4 {[%clk 0:02:38]}  exf4 {[%clk 0:02:37]} 4. Nf3 {[%clk 0:02:37]}  g5 {[%clk 0:02:38]} 5. h4 {[%clk 0:02:37]}  g4 {[%clk 0:02:38]} 6. Ng5 {[%clk 0:02:38]}  Nh6 {[%clk 0:02:35]} 7. d4 {[%clk 0:02:25]}  f6 {[%clk 0:02:36]} 8. Nh3 {[%clk 0:02:25]}  Be7 {[%clk 0:02:37]} 9. Bxf4 {[%clk 0:02:18]}  Nf7 {[%clk 0:02:37]} 10. Qxg4 {[%clk 0:02:10]}  d5 {[%clk 0:02:38]} 11. Qh5 {[%clk 0:02:05]}  dxe4 {[%clk 0:02:10]} 12. Bc4 {[%clk 0:01:58]}  Rf8 {[%clk 0:02:08]} 13. O-O-O {[%clk 0:01:39]}  Na5 {[%clk 0:02:02]} 14. Bxf7+ {[%clk 0:01:28]}  Rxf7 {[%clk 0:02:00]} 15. Nxe4 {[%clk 0:01:13]}  c6 {[%clk 0:01:45]} 16. Rhe1 {[%clk 0:01:08]}  Kf8 {[%clk 0:01:35]} 17. Re3 {[%clk 0:00:43]}  Qd5 {[%clk 0:01:30]} 18. Qh6+ {[%clk 0:00:29]}  Kg8 {[%clk 0:01:12]} 19. Nxf6+ {[%clk 0:00:19]}  Rxf6 {[%clk 0:01:08]} 20. Rg3+ {[%clk 0:00:15]}  Kf7 {[%clk 0:00:53]} 21. Qg7+ {[%clk 0:00:12]}  Ke8 {[%clk 0:00:54]} 22. Bg5 {[%clk 0:00:11]}  Rf7 {[%clk 0:00:39]} 23. Qg8+ {[%clk 0:00:11]}  Rf8 {[%clk 0:00:39]} 24. Qxd5 {[%clk 0:00:07]}  cxd5 {[%clk 0:00:40]} 25. Re1 {[%clk 0:00:06]}  Nc6 {[%clk 0:00:40]} 26. Bxe7 {[%clk 0:00:02]}  Bxh3 {[%clk 0:00:41]} 27. Bxf8+ {[%clk 0:00:02]}  Kxf8 {[%clk 0:00:41]} 28. gxh3 {[%clk 0:00:02]}  Nxd4 {[%clk 0:00:40]} 29. Rf1+ {[%clk 0:00:02]}  Ke7 {[%clk 0:00:40]} 30. Rg7+ {[%clk 0:00:03]}  Kd6 {[%clk 0:00:39]} 31. Rxb7 {[%clk 0:00:03]}  Rg8 {[%clk 0:00:38]} 32. Rxh7 {[%clk 0:00:03]}  Rg2 {[%clk 0:00:38]} 33. c3 {[%clk 0:00:03]}  Ne2+ {[%clk 0:00:38]} 34. Kb1 {[%clk 0:00:03]}  Ng3 {[%clk 0:00:39]} 35. Rh6+ {[%clk 0:00:03]}  Kc5 {[%clk 0:00:39]} 36. Re1 {[%clk 0:00:03]}  Ne4 {[%clk 0:00:40]} 37. Rh8 {[%clk 0:00:02]}  Nd2+ {[%clk 0:00:40]} 38. Ka1 {[%clk 0:00:03]}  Nc4 {[%clk 0:00:40]} 39. b3 {[%clk 0:00:02]}  Na3 {[%clk 0:00:40]} 40. Rc8+ {[%clk 0:00:03]}  Kd6 {[%clk 0:00:40]} 41. Rc1 {[%clk 0:00:03]}  Nc2+ {[%clk 0:00:39]} 42. Kb2 {[%clk 0:00:03]}  Nb4+ {[%clk 0:00:37]} 43. Ka3 {[%clk 0:00:03]}  Nxa2 {[%clk 0:00:36]} 44. Ra1 {[%clk 0:00:02]}  Kd7 {[%clk 0:00:36]} 45. Ra8 {[%clk 0:00:02]}  Nxc3 {[%clk 0:00:36]} 46. Rxa7+ {[%clk 0:00:02]}  Kc6 {[%clk 0:00:36]} 47. h5 {[%clk 0:00:02]}  Nb5+ {[%clk 0:00:36]} 48. Kb4 {[%clk 0:00:03]}  Nxa7 {[%clk 0:00:34]} 49. Rxa7 {[%clk 0:00:03]}  Rh2 {[%clk 0:00:35]} 50. h6 {[%clk 0:00:03]}  Rxh3 {[%clk 0:00:35]} 51. h7 {[%clk 0:00:03]}  Kb6 {[%clk 0:00:32]} 52. Rg7 {[%clk 0:00:03]}  Rh4+ {[%clk 0:00:32]} 53. Kc3 {[%clk 0:00:03]}  Kb5 {[%clk 0:00:32]} 54. Kd3 {[%clk 0:00:03]}  Kb4 {[%clk 0:00:32]} 55. Rb7+ {[%clk 0:00:03]}  Kc5 {[%clk 0:00:32]} 56. b4+ {[%clk 0:00:04]}  Kc6 {[%clk 0:00:33]} 57. Rg7 {[%clk 0:00:04]}  Kb5 {[%clk 0:00:33]} 58. Rb7+ {[%clk 0:00:04]}  Ka4 {[%clk 0:00:32]} 59. b5 {[%clk 0:00:04]}  Ka5 {[%clk 0:00:31]} 60. b6 {[%clk 0:00:04]}  Ka6 {[%clk 0:00:32]} 61. Rb8 {[%clk 0:00:04]}  Rxh7 {[%clk 0:00:30]} 62. Kd4 {[%clk 0:00:05]}  Rh5 {[%clk 0:00:30]} 63. Rd8 {[%clk 0:00:05]}  Kxb6 {[%clk 0:00:30]} 64. Rxd5 {[%clk 0:00:05]}  Rh4+ {[%clk 0:00:30]} 65. Ke5 {[%clk 0:00:06]}  Kc6 {[%clk 0:00:30]} 66. Rd1 {[%clk 0:00:06]}  Rh8 {[%clk 0:00:29]} 67. Rc1+ {[%clk 0:00:06]}  Kd7 {[%clk 0:00:30]} 68. Rf1 {[%clk 0:00:07]}  Ke7 {[%clk 0:00:30]} 69. Kd4 {[%clk 0:00:07]}  Ra8 {[%clk 0:00:30]} 70. Re1+ {[%clk 0:00:08]}  Kd6 {[%clk 0:00:30]} 71. Kc3 {[%clk 0:00:08]}  Kc5 {[%clk 0:00:30]} 72. Rh1 {[%clk 0:00:08]}  Ra3+ {[%clk 0:00:31]} 73. Kd2 {[%clk 0:00:09]}  Rg3 {[%clk 0:00:31]} 74. Rh4 {[%clk 0:00:09]}  Rf3 {[%clk 0:00:30]} 75. Rg4 {[%clk 0:00:09]}  Kd5 {[%clk 0:00:30]} 76. Rh4 {[%clk 0:00:09]}  Rg3 {[%clk 0:00:31]} 77. Rf4 {[%clk 0:00:09]}  Ke5 {[%clk 0:00:31]} 78. Ra4 {[%clk 0:00:10]}  Rb3 {[%clk 0:00:32]} 79. Rc4 {[%clk 0:00:10]}  Kf5 {[%clk 0:00:32]} 80. Ra4 {[%clk 0:00:10]}  Rb5 {[%clk 0:00:32]} 81. Ke3 {[%clk 0:00:10]}  Ke5 {[%clk 0:00:31]} 82. Rh4 {[%clk 0:00:10]}  Rb3+ {[%clk 0:00:31]} 83. Kd2 {[%clk 0:00:10]}  Rg3 {[%clk 0:00:31]} 84. Ke2 {[%clk 0:00:11]}  Kf5 {[%clk 0:00:31]} 85. Ra4 {[%clk 0:00:11]}  Rb3 {[%clk 0:00:32]} 86. Kd2 {[%clk 0:00:11]}  Ke6 {[%clk 0:00:32]} 87. Kc2 {[%clk 0:00:11]}  Rb6 {[%clk 0:00:33]} 88. Kd3 {[%clk 0:00:12]}  Kd6 {[%clk 0:00:34]} 89. Kd4 {[%clk 0:00:11]}  Kc6 {[%clk 0:00:34]} 90. Ra5 {[%clk 0:00:12]}  Rb4+ {[%clk 0:00:34]} 91. Kc3 {[%clk 0:00:12]}  Rh4 {[%clk 0:00:35]} 92. Rg5 {[%clk 0:00:12]}  Rh6 {[%clk 0:00:34]} 93. Kc4 {[%clk 0:00:12]}  Rd6 {[%clk 0:00:35]} 94. Ra5 {[%clk 0:00:11]}  Re6 {[%clk 0:00:36]} 95. Rg5 {[%clk 0:00:11]}  Kd7 {[%clk 0:00:37]} 96. Ra5 {[%clk 0:00:11]}  Kd6 {[%clk 0:00:38]} 97. Ra6+ {[%clk 0:00:12]}  Ke5 {[%clk 0:00:38]} 98. Rxe6+ {[%clk 0:00:10]}  Kxe6 {[%clk 0:00:39]} 1/2-1/2


[Site "https://www.chess.com"]

[Event "Titled Tuesday Blitz October 25 Late 2022"]
[White "Barbero Sendic, Alejandro"]
[Black "Gedgafov, Chamal"]
[WhiteFideId "3001288"]
[BlackFideId "34130621"]
[WhiteElo "2314"]
[BlackElo "2067"]
[Result "1-0"]
[Round "06"]
[TimeControl "180+1"]
[Date "2022.10.26"]
[WhiteClock "0:00:48"]
[BlackClock "0:01:37"]

1. d4 {[%clk 0:03:00]}  d5 {[%clk 0:02:59]} 2. Nc3 {[%clk 0:03:00]}  e6 {[%clk 0:02:58]} 3. Bf4 {[%clk 0:03:00]}  c6 {[%clk 0:02:57]} 4. e4 {[%clk 0:02:59]}  dxe4 {[%clk 0:02:57]} 5. Nxe4 {[%clk 0:02:59]}  Nf6 {[%clk 0:02:58]} 6. Nxf6+ {[%clk 0:02:57]}  Qxf6 {[%clk 0:02:59]} 7. Qd2 {[%clk 0:02:57]}  a5 {[%clk 0:02:52]} 8. Nf3 {[%clk 0:02:52]}  Qd8 {[%clk 0:02:51]} 9. Bd3 {[%clk 0:02:49]}  Nd7 {[%clk 0:02:51]} 10. O-O {[%clk 0:02:45]}  Nf6 {[%clk 0:02:50]} 11. c4 {[%clk 0:02:42]}  a4 {[%clk 0:02:46]} 12. Rfe1 {[%clk 0:02:33]}  Qa5 {[%clk 0:02:45]} 13. Qc2 {[%clk 0:02:30]}  Be7 {[%clk 0:02:36]} 14. Re5 {[%clk 0:02:30]}  Qb4 {[%clk 0:02:30]} 15. Rae1 {[%clk 0:02:23]}  Bd6 {[%clk 0:02:26]} 16. Bd2 {[%clk 0:02:07]}  Qb6 {[%clk 0:02:22]} 17. c5 {[%clk 0:02:08]}  Qd8 {[%clk 0:02:22]} 18. cxd6 {[%clk 0:02:07]}  Qxd6 {[%clk 0:02:23]} 19. a3 {[%clk 0:02:06]}  Qd8 {[%clk 0:02:17]} 20. Bg5 {[%clk 0:01:59]}  h6 {[%clk 0:02:16]} 21. Bxf6 {[%clk 0:01:56]}  gxf6 {[%clk 0:02:16]} 22. R5e2 {[%clk 0:01:55]}  Qa5 {[%clk 0:02:15]} 23. h3 {[%clk 0:01:53]}  h5 {[%clk 0:02:15]} 24. Qc5 {[%clk 0:01:50]}  Qxc5 {[%clk 0:02:13]} 25. dxc5 {[%clk 0:01:50]}  Ra5 {[%clk 0:02:14]} 26. Rc1 {[%clk 0:01:45]}  Ke7 {[%clk 0:02:14]} 27. Nd4 {[%clk 0:01:43]}  Rd8 {[%clk 0:02:09]} 28. Nf5+ {[%clk 0:01:42]}  Kf8 {[%clk 0:02:09]} 29. Nd6 {[%clk 0:01:43]}  Ra7 {[%clk 0:01:57]} 30. Be4 {[%clk 0:01:36]}  f5 {[%clk 0:01:57]} 31. Bf3 {[%clk 0:01:36]}  h4 {[%clk 0:01:56]} 32. Rd2 {[%clk 0:01:24]}  Ke7 {[%clk 0:01:54]} 33. Rcd1 {[%clk 0:01:23]}  Rg8 {[%clk 0:01:53]} 34. Nxc8+ {[%clk 0:01:21]}  Rxc8 {[%clk 0:01:53]} 35. Rd7+ {[%clk 0:01:21]}  Kf6 {[%clk 0:01:54]} 36. Bh5 {[%clk 0:01:20]}  Rf8 {[%clk 0:01:53]} 37. Rc7 {[%clk 0:01:19]}  Ra5 {[%clk 0:01:52]} 38. Rxb7 {[%clk 0:01:17]}  Rxc5 {[%clk 0:01:51]} 39. Rdd7 {[%clk 0:01:18]}  Rc1+ {[%clk 0:01:49]} 40. Kh2 {[%clk 0:01:18]}  Rc2 {[%clk 0:01:50]} 41. Rxf7+ {[%clk 0:01:14]}  Rxf7 {[%clk 0:01:50]} 42. Rxf7+ {[%clk 0:01:15]}  Ke5 {[%clk 0:01:50]} 43. Bd1 {[%clk 0:01:09]}  Rxb2 {[%clk 0:01:49]} 44. Bxa4 {[%clk 0:01:09]}  Ra2 {[%clk 0:01:47]} 45. Bxc6 {[%clk 0:01:08]}  Rxa3 {[%clk 0:01:47]} 46. Rh7 {[%clk 0:01:06]}  Ra2 {[%clk 0:01:47]} 47. Rxh4 {[%clk 0:01:03]}  Rxf2 {[%clk 0:01:46]} 48. Ra4 {[%clk 0:00:54]}  Rc2 {[%clk 0:01:43]} 49. Bf3 {[%clk 0:00:53]}  Kf6 {[%clk 0:01:43]} 50. Ra6 {[%clk 0:00:52]}  Rc1 {[%clk 0:01:41]} 51. Bd5 {[%clk 0:00:49]}  Re1 {[%clk 0:01:41]} 52. Rxe6+ {[%clk 0:00:47]}  Rxe6 {[%clk 0:01:41]} 53. Bxe6 {[%clk 0:00:48]}  Kxe6 {[%clk 0:01:42]} 54. Kg3 {[%clk 0:00:48]}  Kf7 {[%clk 0:01:38]} 55. Kf4 {[%clk 0:00:47]}  Kf6 {[%clk 0:01:38]} 56. h4 {[%clk 0:00:48]}  Kg6 {[%clk 0:01:38]} 57. h5+ {[%clk 0:00:48]}  Kxh5 {[%clk 0:01:37]} 58. Kxf5 {[%clk 0:00:48]}  Kh4 {[%clk 0:01:37]} 59. g4 {[%clk 0:00:48]} 1-0


[Site "https://www.chess.com"]

[Event "Titled Tuesday Blitz October 25 Late 2022"]
[White "Baskakov, Egor"]
[Black "Banzea, Alexandru-Bogdan"]
[WhiteFideId "24197866"]
[BlackFideId "1232622"]
[WhiteElo "2211"]
[BlackElo "2294"]
[Result "1/2-1/2"]
[Round "06"]
[TimeControl "180+1"]
[Date "2022.10.26"]
[WhiteClock "0:00:12"]
[BlackClock "0:00:05"]

1. e4 {[%clk 0:03:00]}  d5 {[%clk 0:02:58]} 2. exd5 {[%clk 0:02:57]}  c6 {[%clk 0:02:58]} 3. dxc6 {[%clk 0:02:56]}  Nxc6 {[%clk 0:02:59]} 4. Nf3 {[%clk 0:02:56]}  e5 {[%clk 0:03:00]} 5. Nc3 {[%clk 0:02:56]}  Nf6 {[%clk 0:02:42]} 6. Bb5 {[%clk 0:02:53]}  Bd6 {[%clk 0:02:29]} 7. d4 {[%clk 0:02:51]}  exd4 {[%clk 0:02:26]} 8. Nxd4 {[%clk 0:02:50]}  O-O {[%clk 0:02:26]} 9. Nxc6 {[%clk 0:02:26]}  bxc6 {[%clk 0:02:25]} 10. Be2 {[%clk 0:02:27]}  Bf5 {[%clk 0:02:10]} 11. O-O {[%clk 0:02:22]}  Qc7 {[%clk 0:02:11]} 12. h3 {[%clk 0:02:21]}  Rad8 {[%clk 0:02:09]} 13. Bd3 {[%clk 0:02:21]}  Bxd3 {[%clk 0:02:07]} 14. cxd3 {[%clk 0:02:21]}  Bh2+ {[%clk 0:02:00]} 15. Kh1 {[%clk 0:02:20]}  Be5 {[%clk 0:02:01]} 16. Qf3 {[%clk 0:02:19]}  Nd5 {[%clk 0:01:55]} 17. Nxd5 {[%clk 0:02:05]}  Rxd5 {[%clk 0:01:56]} 18. Be3 {[%clk 0:02:05]}  Bxb2 {[%clk 0:01:43]} 19. Rab1 {[%clk 0:02:03]}  Bf6 {[%clk 0:01:43]} 20. Rfc1 {[%clk 0:02:02]}  Rfd8 {[%clk 0:01:33]} 21. g3 {[%clk 0:01:59]}  Rxd3 {[%clk 0:01:22]} 22. Rxc6 {[%clk 0:01:36]}  Qd7 {[%clk 0:01:21]} 23. Kg2 {[%clk 0:01:28]}  Bg5 {[%clk 0:01:10]} 24. Rc2 {[%clk 0:01:08]}  Bxe3 {[%clk 0:00:58]} 25. Rb7 {[%clk 0:00:53]}  Qe6 {[%clk 0:00:44]} 26. Re2 {[%clk 0:00:52]}  h6 {[%clk 0:00:27]} 27. Rxe3 {[%clk 0:00:28]}  Rxe3 {[%clk 0:00:23]} 28. Qxe3 {[%clk 0:00:28]}  Qxe3 {[%clk 0:00:23]} 29. fxe3 {[%clk 0:00:28]}  Rd2+ {[%clk 0:00:23]} 30. Kf3 {[%clk 0:00:29]}  Rxa2 {[%clk 0:00:24]} 31. h4 {[%clk 0:00:26]}  h5 {[%clk 0:00:24]} 32. e4 {[%clk 0:00:21]}  g6 {[%clk 0:00:24]} 33. e5 {[%clk 0:00:21]}  a5 {[%clk 0:00:21]} 34. Rb8+ {[%clk 0:00:21]}  Kg7 {[%clk 0:00:21]} 35. Rb7 {[%clk 0:00:21]}  Kf8 {[%clk 0:00:22]} 36. Kf4 {[%clk 0:00:18]}  Rf2+ {[%clk 0:00:17]} 37. Ke4 {[%clk 0:00:19]}  Ra2 {[%clk 0:00:14]} 38. Ra7 {[%clk 0:00:17]}  a4 {[%clk 0:00:12]} 39. e6 {[%clk 0:00:16]}  fxe6 {[%clk 0:00:08]} 40. Ke5 {[%clk 0:00:16]}  Rg2 {[%clk 0:00:06]} 41. Kf6 {[%clk 0:00:14]}  Ke8 {[%clk 0:00:05]} 42. Kxg6 {[%clk 0:00:14]}  Rxg3+ {[%clk 0:00:04]} 43. Kxh5 {[%clk 0:00:14]}  a3 {[%clk 0:00:05]} 44. Kh6 {[%clk 0:00:15]}  e5 {[%clk 0:00:05]} 45. h5 {[%clk 0:00:15]}  e4 {[%clk 0:00:05]} 46. Kh7 {[%clk 0:00:16]}  Rb3 {[%clk 0:00:05]} 47. h6 {[%clk 0:00:12]}  e3 {[%clk 0:00:05]} 48. Kg7 {[%clk 0:00:11]}  e2 {[%clk 0:00:06]} 49. h7 {[%clk 0:00:11]}  Rg3+ {[%clk 0:00:06]} 50. Kf6 {[%clk 0:00:11]}  Rh3 {[%clk 0:00:05]} 51. Re7+ {[%clk 0:00:09]}  Kd8 {[%clk 0:00:06]} 52. Rxe2 {[%clk 0:00:09]}  Rxh7 {[%clk 0:00:06]} 53. Ra2 {[%clk 0:00:10]}  Rh3 {[%clk 0:00:06]} 54. Ke5 {[%clk 0:00:10]}  Kc7 {[%clk 0:00:07]} 55. Kd4 {[%clk 0:00:11]}  Kb6 {[%clk 0:00:06]} 56. Kc4 {[%clk 0:00:11]}  Ka5 {[%clk 0:00:06]} 57. Re2 {[%clk 0:00:10]}  Ka4 {[%clk 0:00:06]} 58. Re8 {[%clk 0:00:10]}  Rh4+ {[%clk 0:00:06]} 59. Kc3 {[%clk 0:00:11]}  Rh3+ {[%clk 0:00:05]} 60. Kc4 {[%clk 0:00:11]}  Rh4+ {[%clk 0:00:05]} 61. Kc3 {[%clk 0:00:12]}  Rh3+ {[%clk 0:00:05]} 62. Kc4 {[%clk 0:00:12]} 1/2-1/2


[Site "https://www.chess.com"]

[Event "Titled Tuesday Blitz October 25 Late 2022"]
[White "Camacho Campusano, David Daniel"]
[Black "Jimenez Fernandez, Rebeca"]
[WhiteFideId "6408885"]
[BlackFideId "32070934"]
[WhiteElo "2181"]
[BlackElo "1946"]
[Result "1-0"]
[Round "06"]
[TimeControl "180+1"]
[Date "2022.10.26"]
[WhiteClock "0:00:07"]
[BlackClock "0:00:01"]

1. e4 {[%clk 0:02:55]}  g6 {[%clk 0:02:22]} 2. d4 {[%clk 0:02:55]}  Bg7 {[%clk 0:02:22]} 3. Nc3 {[%clk 0:02:55]}  d6 {[%clk 0:02:22]} 4. f4 {[%clk 0:02:54]}  a6 {[%clk 0:02:22]} 5. Nf3 {[%clk 0:02:55]}  b5 {[%clk 0:02:23]} 6. a3 {[%clk 0:02:55]}  Bb7 {[%clk 0:02:21]} 7. Bd3 {[%clk 0:02:55]}  Nf6 {[%clk 0:02:22]} 8. O-O {[%clk 0:02:55]}  O-O {[%clk 0:02:22]} 9. h3 {[%clk 0:02:52]}  Nbd7 {[%clk 0:02:22]} 10. e5 {[%clk 0:02:51]}  Nd5 {[%clk 0:02:15]} 11. Nxd5 {[%clk 0:02:47]}  Bxd5 {[%clk 0:02:16]} 12. c3 {[%clk 0:02:47]}  c5 {[%clk 0:02:14]} 13. Be3 {[%clk 0:02:44]}  dxe5 {[%clk 0:01:58]} 14. fxe5 {[%clk 0:02:42]}  cxd4 {[%clk 0:01:56]} 15. cxd4 {[%clk 0:02:42]}  Qb6 {[%clk 0:01:43]} 16. Rc1 {[%clk 0:02:34]}  Nxe5 {[%clk 0:01:42]} 17. Nxe5 {[%clk 0:02:08]}  Bxe5 {[%clk 0:01:41]} 18. dxe5 {[%clk 0:01:58]}  Qxe3+ {[%clk 0:01:40]} 19. Rf2 {[%clk 0:01:58]}  Qxe5 {[%clk 0:01:36]} 20. Rc5 {[%clk 0:01:53]}  Rad8 {[%clk 0:01:28]} 21. Qe2 {[%clk 0:01:37]}  Qd4 {[%clk 0:01:05]} 22. Rc3 {[%clk 0:01:31]}  e5 {[%clk 0:00:50]} 23. Bc2 {[%clk 0:01:28]}  Bc4 {[%clk 0:00:43]} 24. Qf3 {[%clk 0:01:22]}  f5 {[%clk 0:00:30]} 25. Kh2 {[%clk 0:01:15]}  e4 {[%clk 0:00:29]} 26. Qf4 {[%clk 0:01:13]}  Qd6 {[%clk 0:00:27]} 27. Qxd6 {[%clk 0:01:11]}  Rxd6 {[%clk 0:00:28]} 28. b3 {[%clk 0:01:11]}  Bd3 {[%clk 0:00:22]} 29. Bxd3 {[%clk 0:01:07]}  Rxd3 {[%clk 0:00:22]} 30. Rc6 {[%clk 0:00:47]}  Rxb3 {[%clk 0:00:19]} 31. Rxa6 {[%clk 0:00:47]}  Rd8 {[%clk 0:00:18]} 32. Ra7 {[%clk 0:00:45]}  Rbd3 {[%clk 0:00:17]} 33. Rb2 {[%clk 0:00:41]}  R3d7 {[%clk 0:00:16]} 34. Ra5 {[%clk 0:00:40]}  Kf7 {[%clk 0:00:14]} 35. Raxb5 {[%clk 0:00:38]}  e3 {[%clk 0:00:15]} 36. Re2 {[%clk 0:00:35]}  Re8 {[%clk 0:00:15]} 37. Rb3 {[%clk 0:00:33]}  Rde7 {[%clk 0:00:13]} 38. Kg3 {[%clk 0:00:33]}  g5 {[%clk 0:00:13]} 39. Kf3 {[%clk 0:00:31]}  f4 {[%clk 0:00:12]} 40. g3 {[%clk 0:00:30]}  Re4 {[%clk 0:00:07]} 41. Rb7+ {[%clk 0:00:28]}  Kg6 {[%clk 0:00:06]} 42. Rb6+ {[%clk 0:00:27]}  Kg7 {[%clk 0:00:02]} 43. h4 {[%clk 0:00:21]}  Rd4 {[%clk 0:00:02]} 44. hxg5 {[%clk 0:00:18]}  Rd2 {[%clk 0:00:02]} 45. gxf4 {[%clk 0:00:18]}  Rxe2 {[%clk 0:00:01]} 46. Kxe2 {[%clk 0:00:19]}  Rf8 {[%clk 0:00:01]} 47. Kxe3 {[%clk 0:00:18]}  Ra8 {[%clk 0:00:02]} 48. Rb3 {[%clk 0:00:16]}  Ra4 {[%clk 0:00:02]} 49. Kf3 {[%clk 0:00:17]}  Kg6 {[%clk 0:00:03]} 50. Kg4 {[%clk 0:00:18]}  h5+ {[%clk 0:00:02]} 51. Kg3 {[%clk 0:00:11]}  Kf5 {[%clk 0:00:02]} 52. Rb5+ {[%clk 0:00:11]}  Ke4 {[%clk 0:00:01]} 53. Re5+ {[%clk 0:00:09]}  Kd4 {[%clk 0:00:01]} 54. g6 {[%clk 0:00:10]}  Rxa3+ {[%clk 0:00:01]} 55. Kh4 {[%clk 0:00:11]}  Ra6 {[%clk 0:00:02]} 56. Kg5 {[%clk 0:00:10]}  Rb6 {[%clk 0:00:01]} 57. g7 {[%clk 0:00:11]}  Rb8 {[%clk 0:00:01]} 58. Kg6 {[%clk 0:00:08]}  Rg8 {[%clk 0:00:01]} 59. Kf7 {[%clk 0:00:07]} 1-0


[Site "https://www.chess.com"]

[Event "Titled Tuesday Blitz October 25 Late 2022"]
[White "Caruana, Fabiano"]
[Black "Ozen, Bahadir"]
[WhiteFideId "2020009"]
[BlackFideId "6337058"]
[WhiteElo "2847"]
[BlackElo "2503"]
[Result "1/2-1/2"]
[Round "06"]
[TimeControl "180+1"]
[Date "2022.10.26"]
[WhiteClock "0:00:13"]
[BlackClock "0:00:08"]

1. c4 {[%clk 0:03:00]}  g6 {[%clk 0:02:59]} 2. Nc3 {[%clk 0:03:00]}  Bg7 {[%clk 0:03:00]} 3. g3 {[%clk 0:03:01]}  c5 {[%clk 0:02:58]} 4. Bg2 {[%clk 0:03:01]}  Nc6 {[%clk 0:02:57]} 5. Nf3 {[%clk 0:03:02]}  d6 {[%clk 0:02:56]} 6. O-O {[%clk 0:03:02]}  Nh6 {[%clk 0:02:57]} 7. b3 {[%clk 0:02:59]}  Nf5 {[%clk 0:02:53]} 8. Bb2 {[%clk 0:02:59]}  h5 {[%clk 0:02:53]} 9. h3 {[%clk 0:02:58]}  Bd7 {[%clk 0:02:43]} 10. e3 {[%clk 0:02:57]}  O-O {[%clk 0:02:40]} 11. Qe2 {[%clk 0:02:56]}  a6 {[%clk 0:02:36]} 12. Rfd1 {[%clk 0:02:56]}  b5 {[%clk 0:02:19]} 13. d3 {[%clk 0:02:53]}  Rb8 {[%clk 0:02:16]} 14. Nd5 {[%clk 0:02:48]}  e5 {[%clk 0:02:13]} 15. Nd2 {[%clk 0:02:44]}  Nce7 {[%clk 0:02:03]} 16. Ne4 {[%clk 0:02:37]}  Nxd5 {[%clk 0:02:03]} 17. cxd5 {[%clk 0:02:38]}  Qe7 {[%clk 0:02:03]} 18. Rac1 {[%clk 0:02:33]}  b4 {[%clk 0:02:00]} 19. Nd2 {[%clk 0:02:30]}  h4 {[%clk 0:01:56]} 20. g4 {[%clk 0:02:29]}  Nh6 {[%clk 0:01:57]} 21. Nf3 {[%clk 0:02:05]}  f5 {[%clk 0:01:56]} 22. g5 {[%clk 0:02:05]}  Nf7 {[%clk 0:01:56]} 23. Nxh4 {[%clk 0:02:04]}  Qxg5 {[%clk 0:01:56]} 24. Nf3 {[%clk 0:02:04]}  Qh5 {[%clk 0:01:52]} 25. Re1 {[%clk 0:01:56]}  e4 {[%clk 0:01:46]} 26. Bxg7 {[%clk 0:01:55]}  exf3 {[%clk 0:01:46]} 27. Qxf3 {[%clk 0:01:44]}  Qxf3 {[%clk 0:01:45]} 28. Bxf3 {[%clk 0:01:44]}  Kxg7 {[%clk 0:01:46]} 29. d4 {[%clk 0:01:44]}  cxd4 {[%clk 0:01:43]} 30. exd4 {[%clk 0:01:43]}  Rbc8 {[%clk 0:01:43]} 31. Rc4 {[%clk 0:01:39]}  Bb5 {[%clk 0:01:12]} 32. Rxb4 {[%clk 0:01:36]}  Rfe8 {[%clk 0:01:12]} 33. Rxe8 {[%clk 0:01:31]}  Rxe8 {[%clk 0:01:13]} 34. a4 {[%clk 0:01:31]}  Re1+ {[%clk 0:01:13]} 35. Kh2 {[%clk 0:01:30]}  Bd3 {[%clk 0:01:13]} 36. Rb6 {[%clk 0:01:19]}  Rf1 {[%clk 0:01:07]} 37. Kg2 {[%clk 0:01:16]}  Rb1 {[%clk 0:01:07]} 38. b4 {[%clk 0:01:14]}  Kf6 {[%clk 0:01:01]} 39. h4 {[%clk 0:01:10]}  Be4 {[%clk 0:00:58]} 40. Bxe4 {[%clk 0:01:09]}  fxe4 {[%clk 0:00:59]} 41. a5 {[%clk 0:00:58]}  Rb2 {[%clk 0:00:55]} 42. Kg3 {[%clk 0:00:49]}  Kf5 {[%clk 0:00:56]} 43. Rb7 {[%clk 0:00:43]}  Rb3+ {[%clk 0:00:56]} 44. Kg2 {[%clk 0:00:42]}  Nh6 {[%clk 0:00:57]} 45. Rb6 {[%clk 0:00:38]}  Rb2 {[%clk 0:00:54]} 46. Kg3 {[%clk 0:00:35]}  Rb3+ {[%clk 0:00:54]} 47. Kg2 {[%clk 0:00:35]}  Kf4 {[%clk 0:00:49]} 48. Rxd6 {[%clk 0:00:28]}  Nf5 {[%clk 0:00:49]} 49. Rxa6 {[%clk 0:00:26]}  Nxh4+ {[%clk 0:00:48]} 50. Kh2 {[%clk 0:00:25]}  Rb2 {[%clk 0:00:48]} 51. Rf6+ {[%clk 0:00:24]}  Nf5 {[%clk 0:00:47]} 52. Kg1 {[%clk 0:00:21]}  Kg5 {[%clk 0:00:46]} 53. Re6 {[%clk 0:00:20]}  Rb1+ {[%clk 0:00:41]} 54. Kh2 {[%clk 0:00:20]}  Kf4 {[%clk 0:00:40]} 55. a6 {[%clk 0:00:18]}  Nxd4 {[%clk 0:00:38]} 56. Rf6+ {[%clk 0:00:17]}  Ke5 {[%clk 0:00:35]} 57. Rxg6 {[%clk 0:00:15]}  Nf3+ {[%clk 0:00:34]} 58. Kh3 {[%clk 0:00:15]}  Kf5 {[%clk 0:00:26]} 59. Rb6 {[%clk 0:00:12]}  Rh1+ {[%clk 0:00:22]} 60. Kg2 {[%clk 0:00:12]}  Rg1+ {[%clk 0:00:19]} 61. Kh3 {[%clk 0:00:12]}  Ng5+ {[%clk 0:00:20]} 62. Kh2 {[%clk 0:00:12]}  Nf3+ {[%clk 0:00:20]} 63. Kh3 {[%clk 0:00:13]}  Ra1 {[%clk 0:00:10]} 64. d6 {[%clk 0:00:13]}  Kf4 {[%clk 0:00:10]} 65. d7 {[%clk 0:00:11]}  Rh1+ {[%clk 0:00:10]} 66. Kg2 {[%clk 0:00:11]}  Rg1+ {[%clk 0:00:11]} 67. Kh3 {[%clk 0:00:12]}  Ng5+ {[%clk 0:00:12]} 68. Kh2 {[%clk 0:00:11]}  Nf3+ {[%clk 0:00:13]} 69. Kh3 {[%clk 0:00:12]}  Ng5+ {[%clk 0:00:07]} 70. Kh2 {[%clk 0:00:12]}  Nf3+ {[%clk 0:00:08]} 71. Kh3 {[%clk 0:00:13]} 1/2-1/2


[Site "https://www.chess.com"]

[Event "Titled Tuesday Blitz October 25 Late 2022"]
[White "Chigaev, Maksim"]
[Black "Novik, Maxim"]
[WhiteFideId "4108116"]
[BlackFideId "4102924"]
[WhiteElo "2537"]
[BlackElo "2312"]
[Result "1-0"]
[Round "06"]
[TimeControl "180+1"]
[Date "2022.10.26"]
[WhiteClock "0:01:58"]
[BlackClock "0:01:42"]

1. Nf3 {[%clk 0:03:00]}  Nf6 {[%clk 0:02:58]} 2. c4 {[%clk 0:03:01]}  c5 {[%clk 0:02:55]} 3. Nc3 {[%clk 0:03:01]}  g6 {[%clk 0:02:51]} 4. d4 {[%clk 0:02:58]}  cxd4 {[%clk 0:02:51]} 5. Nxd4 {[%clk 0:02:59]}  Nc6 {[%clk 0:02:50]} 6. e4 {[%clk 0:02:59]}  Nxd4 {[%clk 0:02:50]} 7. Qxd4 {[%clk 0:02:59]}  d6 {[%clk 0:02:50]} 8. Be2 {[%clk 0:02:49]}  Bg7 {[%clk 0:02:50]} 9. Be3 {[%clk 0:02:44]}  O-O {[%clk 0:02:50]} 10. Qd2 {[%clk 0:02:44]}  Be6 {[%clk 0:02:50]} 11. Rc1 {[%clk 0:02:28]}  Qa5 {[%clk 0:02:50]} 12. f3 {[%clk 0:02:21]}  Rfc8 {[%clk 0:02:49]} 13. b3 {[%clk 0:02:22]}  a6 {[%clk 0:02:47]} 14. Na4 {[%clk 0:02:21]}  Qxd2+ {[%clk 0:02:43]} 15. Kxd2 {[%clk 0:02:22]}  Nd7 {[%clk 0:02:42]} 16. g4 {[%clk 0:02:23]}  Rc6 {[%clk 0:02:18]} 17. h4 {[%clk 0:02:16]}  Rac8 {[%clk 0:02:17]} 18. h5 {[%clk 0:01:59]}  Bb2 {[%clk 0:01:42]} 19. Nxb2 {[%clk 0:01:58]} 1-0


[Site "https://www.chess.com"]